bitfinex/quotes_ETHUSD_20250529
["timestamp","ask_amount","ask_price","bid_price","bid_amount"]
[1748534820725,0.02,2646.9,2646.8,7.51133865]
[1748534821152,0.02,2646.9,2646.8,3.73319146]
[1748534821316,0.02,2646.9,2646.8,0.38036846]
[1748534821502,0.02,2646.9,2646.5,10.0]
[1748534821503,0.02,2646.9,2646.7,3.77823636]
[1748534821865,0.02,2646.9,2646.8,3.77814719]
[1748534822169,0.02,2646.9,2646.8,29.29060919]
[1748534822333,0.02,2646.9,2646.8,15.01843219]
[1748534822671,0.02,2646.9,2646.8,7.134185]
[1748534823032,0.02,2646.9,2646.6,10.37859189]
[1748534823238,0.02,2646.9,2646.6,0.37859189]
[1748534823415,0.02,2646.9,2646.5,10.0]
[1748534823614,0.02,2646.9,2646.6,10.0]
[1748534823815,0.02,2646.9,2646.6,13.7783937]
[1748534824042,0.02,2646.9,2646.2,8.0]
[1748534824043,0.02,2646.9,2646.7,3.77818807]
[1748534824250,0.02,2646.9,2646.6,3.77830272]
[1748534824550,0.02,2646.9,2646.6,0.37753448]
[1748534824847,0.02,2646.9,2646.1,0.74198683]
[1748534824848,3.77845629,2646.6,2645.9,3.77932355]
[1748534825047,5.0271,2646.8,2645.8,10.0]
[1748534825048,0.37784563,2646.5,2646.0,3.77926001]
[1748534825253,0.37784563,2646.5,2646.0,14.14765541]
[1748534825410,0.37784563,2646.5,2646.0,10.3683954]
[1748534825609,0.8231,2646.8,2646.0,0.3683954]
[1748534825815,0.02,2646.9,2646.7,3.77819045]
[1748534826046,0.02,2646.9,2646.7,4.16437306]
[1748534826253,0.02,2646.9,2646.7,4.16438742]
[1748534826458,0.02,2646.9,2646.2,4.58137674]
[1748534826459,0.02,2646.9,2646.5,3.77849003]
[1748534826675,0.02,2646.9,2646.4,3.77862936]
[1748534827060,0.02,2646.9,2646.5,10.0]
[1748534827225,0.7652,2646.8,2645.6,0.7839]
[1748534827423,0.833,2645.8,2645.6,0.37179423]
[1748534827628,0.833,2645.8,2645.0,10.83816804]
[1748534827629,5.034,2645.8,2645.1,10.0]
[1748534827926,5.034,2645.8,2645.3,14.597227]
[1748534828173,5.034,2645.8,2645.3,0.37130329]
[1748534828380,5.034,2645.8,2645.1,0.31559585]
[1748534828381,3.78004712,2645.5,2645.1,0.31559585]
[1748534828562,0.7979,2645.7,2645.1,0.31559585]
[1748534828722,4.208,2645.6,2645.1,0.31559585]
[1748534828924,0.7979,2645.7,2645.1,0.31559585]
[1748534828925,4.207,2645.5,2645.2,3.78031715]
[1748534829150,4.207,2645.5,2645.2,13.78031715]
[1748534829320,4.206,2645.7,2645.1,0.31559585]
[1748534829526,0.752,2645.5,2645.1,0.31559585]
[1748534830271,0.752,2645.5,2644.9,4.15032188]
[1748534830272,0.752,2645.5,2645.0,10.0]
[1748534830641,0.752,2645.5,2645.1,3.78055523]
[1748534830858,0.752,2645.5,2645.2,3.7803788]
[1748534831171,0.752,2645.5,2644.9,3.78072234]
[1748534831476,0.752,2645.5,2645.2,3.78038823]
[1748534831825,0.752,2645.5,2645.3,3.78021543]
[1748534832267,4.197,2645.4,2645.3,3.78021543]
[1748534832462,4.196,2645.5,2645.1,10.0]
[1748534832662,0.7662,2645.8,2645.0,0.37807223]
[1748534832663,0.7662,2645.8,2645.7,3.77971803]
[1748534832872,0.7662,2645.8,2645.1,0.7617]
[1748534832873,4.9612,2645.8,2645.1,0.7617]
[1748534833181,4.9612,2645.8,2645.2,0.30437307]
[1748534833358,0.35540794,2646.3,2645.2,0.30437307]
[1748534833359,0.7832,2646.3,2645.3,1.90395847]
[1748534833543,0.7832,2646.3,2645.7,1.90395847]
[1748534833745,4.9762,2646.3,2645.4,10.0]
[1748534833935,4.9762,2646.3,2645.7,3.77962507]
[1748534834136,4.9762,2646.3,2645.8,3.7794397]
[1748534834533,4.9762,2646.3,2645.6,3.77980825]
[1748534834534,4.9762,2646.3,2645.9,3.77930473]
[1748534834870,4.9762,2646.3,2645.9,3.77943232]
[1748534835233,4.9762,2646.3,2645.9,3.77943117]
[1748534835587,4.9762,2646.3,2645.8,3.77950633]
[1748534835970,4.9762,2646.3,2645.9,3.77931189]
[1748534836275,4.186,2646.2,2646.0,3.77924067]
[1748534836589,4.185,2646.2,2646.1,3.77914666]
[1748534836758,4.184,2646.3,2646.2,3.77900385]
[1748534836964,0.7598,2646.6,2646.3,10.0]
[1748534837188,4.9428,2646.6,2646.3,3.77875877]
[1748534837397,0.8042,2646.9,2646.8,3.77814719]
[1748534837695,0.33510445,2646.9,2646.8,3.77814719]
[1748534838267,0.33510445,2646.9,2646.8,7.27926191]
[1748534838452,0.33510445,2646.9,2646.8,4.15596191]
[1748534839396,0.33510445,2646.9,2646.8,9.10608091]
[1748534839615,0.33510445,2646.9,2646.8,6.79173891]
[1748534839753,0.33510445,2646.9,2646.8,3.77814719]
[1748534840799,0.33510445,2646.9,2646.3,0.37686951]
[1748534840967,4.174,2646.8,2646.2,10.0]
[1748534841166,4.174,2646.8,2646.3,3.77876756]
[1748534841493,4.174,2646.8,2646.4,10.0]
[1748534841674,4.174,2646.8,2646.3,3.77875273]
[1748534841849,4.174,2646.8,2646.2,10.0]
[1748534841850,0.7859,2646.7,2646.2,3.77897716]
[1748534842050,0.7859,2646.7,2646.1,4.53497947]
[1748534842255,0.7859,2646.7,2645.3,0.8208]
[1748534842488,0.7859,2646.3,2645.4,2.274478]
[1748534842699,4.17,2646.2,2645.8,3.77955712]
[1748534843265,4.17,2646.2,2646.0,3.77921822]
[1748534843465,0.7894,2646.7,2646.0,2.28116321]
[1748534843670,0.02,2646.9,2646.7,3.77826841]
[1748534843894,0.02,2646.9,2646.8,3.77814719]
[1748534844097,0.02,2646.9,2646.4,10.0]
[1748534844251,0.02,2646.9,2646.8,3.77814719]
[1748534844455,0.02,2646.9,2646.2,4.59429528]
[1748534844655,0.02,2646.9,2646.7,3.77821045]
[1748534844869,4.163,2646.8,2646.2,0.8154]
[1748534845068,4.163,2646.8,2646.5,13.77850871]
[1748534845256,4.163,2646.8,2646.5,3.77850871]
[1748534845674,4.163,2646.8,2646.5,13.77850871]
[1748534845997,4.163,2646.8,2646.4,13.77867753]
[1748534846202,0.7707,2646.7,2646.4,10.0]
[1748534846520,4.163,2646.8,2645.6,1.196]
[1748534846521,3.77880506,2646.4,2645.7,3.77964397]
[1748534846803,4.9871,2646.3,2645.6,10.0]
[1748534847010,4.9871,2646.3,2645.8,3.77945318]
[1748534847213,0.8271,2646.3,2645.9,3.77941089]
[1748534847416,4.158,2646.2,2645.9,3.77933503]
[1748534847895,4.158,2646.2,2645.9,3.77936244]
[1748534848600,4.158,2646.2,2646.0,3.7791595]
[1748534848775,4.158,2646.2,2645.9,3.77937558]
[1748534849283,0.8271,2646.3,2646.2,3.77900385]
[1748534849463,4.9811,2646.3,2646.1,3.77908083]
[1748534849795,4.152,2646.2,2646.1,6.67736766]
[1748534849996,0.8133,2646.7,2646.1,1.04566571]
[1748534850199,0.8133,2646.7,2646.0,3.77928949]
[1748534850200,4.151,2646.6,2646.3,3.77879758]
[1748534850356,4.151,2646.6,2646.5,3.77857547]
[1748534850560,0.02,2646.9,2646.8,3.77814719]
[1748534850790,4.17,2646.9,2646.1,0.7795]
[1748534850976,4.17,2646.9,2646.2,10.0]
[1748534850977,3.77858325,2646.5,2646.2,10.0]
[1748534851174,3.77828994,2646.7,2645.9,3.77929668]
[1748534851175,4.172,2646.4,2645.9,14.072519]
[1748534851375,4.172,2646.4,2646.0,13.77921896]
[1748534851590,4.172,2646.4,2646.0,1.4852019]
[1748534851781,4.172,2646.4,2646.0,10.0]
[1748534852016,4.172,2646.4,2646.1,3.77914298]
[1748534852244,4.172,2646.4,2646.0,3.77925572]
[1748534852416,0.8129,2646.3,2645.8,13.7795064]
[1748534852739,0.8129,2646.3,2645.7,12.499921]
[1748534852740,3.77908876,2646.2,2645.7,12.499921]
[1748534852943,0.45919888,2646.1,2645.5,3.77999037]
[1748534853245,0.8129,2646.3,2645.7,3.77970846]
[1748534853609,0.8129,2646.3,2645.7,3.77968627]
[1748534853811,4.163,2646.2,2645.3,17.47331]
[1748534854016,4.163,2646.2,2645.4,13.78012924]
[1748534854224,4.163,2646.2,2645.7,3.77971784]
[1748534854423,5.03848309,2646.2,2645.8,3.77954541]
[1748534854739,5.03848309,2646.2,2645.6,3.77980349]
[1748534854740,0.87548309,2646.2,2645.7,3.77967496]
[1748534854937,0.8129,2646.3,2646.1,3.77914459]
[1748534855103,0.8323,2646.6,2646.1,3.77914459]
[1748534855442,0.8323,2646.6,2645.7,14.944181]
[1748534855443,4.161,2646.5,2645.7,14.944181]
[1748534855677,4.161,2646.5,2646.0,3.77914865]
[1748534855957,0.8323,2646.6,2646.2,3.77892357]
[1748534856114,4.162,2646.4,2646.1,13.77907368]
[1748534856304,4.162,2646.4,2646.2,3.7790016]
[1748534856504,0.8323,2646.6,2646.3,3.77875094]
[1748534856857,4.161,2646.5,2646.3,3.77875094]
[1748534857062,0.8323,2646.6,2646.5,3.77857547]
[1748534857202,0.8516,2646.9,2646.5,3.7784861]
[1748534857403,4.16,2646.8,2646.3,5.937569]
[1748534857604,3.77837021,2646.7,2646.1,10.0]
[1748534857808,3.77837021,2646.7,2645.7,0.812]
[1748534857809,3.77847981,2646.6,2645.9,2.208147]
[1748534858025,0.7804,2646.7,2646.1,3.77912406]
[1748534858624,0.7804,2646.7,2646.1,3.77910655]
[1748534858824,4.55870979,2646.7,2646.0,3.77923953]
[1748534859029,5.86056951,2646.7,2646.0,13.77922019]
[1748534859242,5.86056951,2646.7,2646.0,3.77922019]
[1748534859445,5.86056951,2646.7,2646.1,3.77914317]
[1748534859649,2.08220175,2646.7,2646.1,3.77914317]
[1748534859850,2.08220175,2646.7,2645.8,10.0]
[1748534860180,0.8278,2646.1,2645.5,3.77993951]
[1748534860323,4.161,2646.0,2645.5,3.77993951]
[1748534860698,0.8278,2646.1,2645.4,5.495928]
[1748534860821,0.02,2646.9,2646.1,0.8173]
[1748534860822,0.7705,2646.9,2646.1,0.8173]
[1748534861029,4.159,2646.8,2646.2,3.77893269]
[1748534861326,4.54856871,2646.9,2646.2,3.77893269]
[1748534861327,0.7705,2646.9,2646.7,3.77822973]
[1748534861526,4.157,2646.8,2646.7,3.77822973]
[1748534861739,4.157,2646.8,2646.1,8.8173]
[1748534861740,4.157,2646.8,2646.1,0.8173]
[1748534862036,4.157,2646.8,2646.2,2.6336]
[1748534862227,4.157,2646.8,2646.2,5.92064485]
[1748534862423,4.157,2646.8,2646.4,3.77859748]
[1748534862857,4.157,2646.8,2646.2,10.0]
[1748534863043,4.64975,2646.8,2646.3,3.77881615]
[1748534863262,8.42790358,2646.8,2646.2,3.77893126]
[1748534863594,4.53172594,2646.6,2645.9,3.77937824]
[1748534863734,4.60964434,2646.5,2645.7,3.77971803]
[1748534864078,3.77898467,2646.3,2645.7,10.0]
[1748534864378,4.15,2646.2,2645.7,10.0]
[1748534864579,4.15,2646.2,2645.6,12.231983]
[1748534864791,4.15,2646.2,2645.6,3.7798609]
[1748534864985,4.15,2646.2,2645.8,3.77954989]
[1748534865657,4.53192897,2646.4,2645.8,0.75594108]
[1748534865658,0.7532,2646.4,2645.8,0.75594108]
[1748534865855,0.7532,2646.4,2645.8,4.53543186]
[1748534865856,4.8982,2646.4,2645.8,4.53543186]
[1748534866054,4.8982,2646.4,2645.5,10.794797]
[1748534866284,4.8982,2646.4,2645.8,3.77950545]
[1748534866593,8.67693247,2646.4,2645.8,3.77950545]
[1748534866891,8.67693247,2646.4,2645.6,10.0]
[1748534866892,3.77894597,2646.3,2645.6,10.0]
[1748534867046,3.77922228,2646.1,2645.3,4.59323849]
[1748534867247,0.7755,2646.3,2645.4,2.593081]
[1748534867444,4.55442954,2646.3,2645.6,10.0]
[1748534867645,0.7755,2646.3,2645.6,10.0]
[1748534867960,4.14,2646.2,2645.8,3.77944949]
[1748534868688,4.14,2646.2,2645.9,3.7793215]
[1748534868874,4.14,2646.2,2645.5,3.78000378]
[1748534868875,4.14,2646.2,2645.7,3.874676]
[1748534869076,4.63155,2646.2,2645.5,13.945528]
[1748534869396,4.63155,2646.2,2645.7,3.77971653]
[1748534869697,4.63155,2646.2,2645.5,10.0]
[1748534869859,4.14,2646.2,2645.8,3.77951308]
[1748534870250,0.7755,2646.3,2645.7,3.77971195]
[1748534870490,4.133,2646.2,2645.9,3.77936703]
[1748534870807,0.7755,2646.3,2645.9,10.0]
[1748534871016,0.7755,2646.3,2646.1,3.77905103]
[1748534871017,4.132,2646.2,2646.1,3.77905103]
[1748534871304,4.132,2646.2,2645.9,3.77942137]
[1748534871603,4.132,2646.2,2646.0,10.0]
[1748534871788,4.132,2646.2,2645.9,3.77935709]
[1748534871967,4.132,2646.2,2646.0,10.0]
[1748534872305,4.132,2646.2,2645.8,3.77946817]
[1748534872910,4.132,2646.2,2645.9,3.77937052]
[1748534873065,4.62275,2646.2,2645.5,3.77992967]
[1748534873413,0.7559,2646.1,2645.5,13.32074]
[1748534873563,0.7559,2646.1,2645.3,3.78025465]
[1748534873763,0.7559,2646.1,2645.8,3.77957241]
[1748534874101,0.7559,2646.1,2645.3,3.78026432]
[1748534874102,0.7559,2646.1,2645.7,3.77964741]
[1748534874901,0.7559,2646.1,2645.9,3.77935835]
[1748534875202,4.121,2646.0,2645.6,10.0]
[1748534875379,4.121,2646.0,2645.6,13.77981774]
[1748534875565,4.121,2646.0,2645.7,3.77968789]
[1748534875765,4.121,2646.0,2645.4,13.78003392]
[1748534876016,4.121,2646.0,2645.3,4.71787793]
[1748534876017,4.121,2646.0,2645.3,4.71781699]
[1748534876179,4.121,2646.0,2645.5,3.77998666]
[1748534876180,0.7529,2645.9,2645.5,3.77998666]
[1748534876713,0.7529,2645.9,2645.4,3.7800657]
[1748534876866,0.7529,2645.9,2645.5,3.77999437]
[1748534877067,0.7529,2645.9,2645.0,0.37807223]
[1748534877272,0.7708,2645.7,2644.9,10.37781556]
[1748534877468,0.7708,2645.5,2644.9,3.78075788]
[1748534877683,4.8958,2645.4,2644.9,3.78083859]
[1748534877903,4.124,2645.3,2644.8,13.78092621]
[1748534878102,4.124,2645.3,2644.8,0.37989797]
[1748534878289,8.39384405,2645.3,2644.7,3.7811342]
[1748534878690,4.61348,2645.3,2644.7,3.7811342]
[1748534878895,4.55102163,2645.4,2644.5,3.78140004]
[1748534878896,0.7708,2645.4,2644.9,3.78081924]
[1748534879071,4.121,2645.3,2644.9,3.7808014]
[1748534879408,4.121,2645.3,2644.8,0.37970904]
[1748534879582,4.121,2645.3,2644.8,3.78100268]
[1748534879986,4.121,2645.3,2644.7,3.78107793]
[1748534880185,4.121,2645.3,2644.8,3.78093124]
[1748534880376,4.121,2645.3,2644.8,10.0]
[1748534880745,4.57933349,2645.2,2644.8,0.3737011]
[1748534880912,0.7989,2645.2,2644.8,0.3737011]
[1748534881118,0.7989,2645.2,2644.7,3.78114617]
[1748534881485,4.57316328,2644.6,2643.4,10.514]
[1748534881686,0.7918,2644.4,2643.9,3.78226806]
[1748534881901,4.116,2644.3,2644.0,3.92963925]
[1748534882115,4.116,2644.9,2644.8,3.78100423]
[1748534882285,4.116,2645.0,2644.9,3.78086128]
[1748534882498,4.116,2645.0,2644.3,0.37218967]
[1748534882499,4.9418,2645.0,2644.3,0.37218967]
[1748534882725,4.9418,2645.0,2644.3,8.0]
[1748534882926,4.9418,2645.0,2644.4,3.78155173]
[1748534883131,4.9418,2645.0,2644.9,3.78086128]
[1748534883515,4.9418,2645.0,2644.8,3.78093037]
[1748534883734,4.9418,2645.0,2644.9,3.78086128]
[1748534884537,0.8129,2645.6,2644.6,3.7811838]
[1748534884734,0.8129,2645.6,2645.2,3.78036311]
[1748534884735,4.116,2645.5,2645.2,3.78036311]
[1748534884902,0.8129,2645.6,2645.1,3.78054994]
[1748534884903,4.116,2645.4,2645.3,3.78025574]
[1748534885227,4.116,2645.4,2644.8,3.78094752]
[1748534885228,4.116,2645.4,2645.0,3.78062297]
[1748534885592,4.116,2645.4,2644.9,3.7808379]
[1748534885819,4.116,2645.4,2644.7,0.7785]
[1748534885820,4.116,2645.4,2645.0,3.78069577]
[1748534886289,4.116,2645.3,2645.1,3.78050488]
[1748534886487,4.116,2645.3,2645.0,3.78064278]
[1748534886715,4.116,2645.3,2644.6,18.0]
[1748534886906,4.116,2645.3,2644.8,13.78092814]
[1748534887112,4.116,2645.3,2644.7,3.78106045]
[1748534887113,7.89634685,2645.3,2644.7,3.78106045]
[1748534887337,5.28365111,2645.3,2644.6,3.78129017]
[1748534887630,0.8191,2645.2,2644.6,3.78129017]
[1748534887846,0.8191,2645.2,2644.6,10.0]
[1748534888006,0.8191,2645.2,2645.0,3.78060006]
[1748534888205,4.116,2645.3,2645.0,3.78063712]
[1748534888511,0.8191,2645.4,2645.3,3.78028957]
[1748534888716,0.8191,2645.8,2645.1,3.78055269]
[1748534888902,4.116,2645.7,2645.6,3.77977108]
[1748534889091,4.9351,2645.8,2645.0,0.55]
[1748534889295,4.9351,2645.8,2645.4,3.78014666]
[1748534889583,4.9351,2645.8,2645.4,3.78003737]
[1748534889722,4.9351,2645.8,2645.5,3.779961]
[1748534890231,4.9351,2645.8,2645.4,3.78011492]
[1748534890395,4.9351,2645.8,2645.2,3.78032501]
[1748534890594,4.9351,2645.8,2645.3,3.78026235]
[1748534891124,4.9351,2645.8,2645.3,10.0]
[1748534891322,4.9351,2645.8,2644.3,0.38171168]
[1748534891323,0.8222,2645.2,2644.6,10.0]
[1748534891634,4.116,2645.1,2644.5,3.78139818]
[1748534891839,7.89670093,2645.1,2644.5,1.7563057]
[1748534891996,0.8029,2644.9,2644.3,0.38097972]
[1748534892199,0.8029,2644.9,2644.4,3.78151428]
[1748534892422,0.8029,2644.9,2644.4,10.0]
[1748534892625,0.8029,2644.9,2644.2,13.78184141]
[1748534892835,3.78132319,2644.6,2644.1,0.02]
[1748534893033,0.8194,2644.4,2644.1,0.02]
[1748534893402,0.8194,2644.4,2644.1,0.39769151]
[1748534893612,0.8194,2644.4,2644.1,0.02]
[1748534895917,0.8194,2644.4,2644.3,3.78171916]
[1748534896113,0.8194,2644.4,2644.1,0.3894476]
[1748534896114,4.116,2644.4,2644.1,0.02]
[1748534896315,0.8123,2644.6,2644.1,11.41497415]
[1748534896515,0.8123,2644.6,2644.5,3.78134152]
[1748534896516,4.116,2644.6,2644.5,3.78134152]
[1748534896732,4.916,2644.7,2644.6,3.78122347]
[1748534896959,0.8123,2645.1,2644.9,3.78078263]
[1748534897162,0.8123,2645.1,2644.9,3.78078491]
[1748534897368,4.117,2645.0,2644.9,3.78078491]
[1748534897509,0.8123,2645.1,2644.8,3.78100423]
[1748534897863,0.8123,2645.1,2644.8,4.1590804]
[1748534897864,4.9293,2645.1,2644.8,4.1590804]
[1748534898162,4.9293,2645.1,2644.9,3.78078484]
[1748534898508,4.9293,2645.1,2644.8,4.15902971]
[1748534898818,0.8123,2645.1,2644.9,3.78085371]
[1748534899020,0.8181,2645.5,2645.2,3.78041096]
[1748534899351,4.117,2645.4,2644.8,0.37810042]
[1748534899644,4.117,2645.4,2644.9,0.41592276]
[1748534899844,4.117,2645.4,2644.9,4.19673189]
[1748534900215,4.117,2645.4,2645.0,3.7807081]
[1748534900866,4.117,2645.4,2644.7,2.148213]
[1748534901045,4.117,2645.4,2645.0,3.78061265]
[1748534901214,4.117,2645.4,2645.1,3.78057508]
[1748534901569,0.7988,2645.2,2644.5,0.37865416]
[1748534901861,0.7988,2645.2,2644.1,1.41497415]
[1748534901862,1.5988,2645.2,2644.7,3.78107646]
[1748534902014,4.116,2645.1,2644.8,3.78098172]
[1748534902214,4.116,2645.0,2644.4,13.78157616]
[1748534902578,4.116,2645.0,2644.5,3.78134601]
[1748534903062,4.116,2645.0,2644.7,3.78108242]
[1748534903449,4.116,2645.0,2644.6,3.78123366]
[1748534903835,4.116,2645.0,2644.7,3.78113859]
[1748534904031,4.116,2645.0,2644.4,3.78147803]
[1748534904279,4.116,2645.0,2644.7,3.78108932]
[1748534904437,4.116,2645.0,2644.7,3.78114044]
[1748534904614,7.89673778,2645.0,2644.2,4.16509824]
[1748534904820,0.7885,2644.6,2644.2,0.38334057]
[1748534905015,0.7885,2644.6,2644.1,3.80191754]
[1748534905016,4.116,2644.5,2644.1,3.80191754]
[1748534905356,0.7885,2644.6,2644.5,3.78143316]
[1748534905527,4.116,2644.6,2644.1,1.22367211]
[1748534905726,4.116,2644.6,2644.5,3.78143316]
[1748534906564,4.116,2644.6,2644.3,13.78161731]
[1748534906726,0.8109,2644.5,2644.4,3.78157616]
[1748534906928,0.8109,2644.5,2644.4,13.78157616]
[1748534907233,0.8109,2644.5,2644.1,0.40511687]
[1748534907234,3.78168251,2644.4,2644.1,0.40511687]
[1748534907451,1.35081162,2644.5,2644.1,0.02]
[1748534908133,4.116,2644.4,2644.2,3.78178031]
[1748534908671,0.8109,2644.5,2644.3,3.78159186]
[1748534908823,0.8109,2644.5,2644.1,0.40103877]
[1748534908824,0.8109,2644.5,2644.4,3.78157616]
[1748534909022,4.9279,2644.5,2644.4,3.78157616]
[1748534909564,4.117,2644.5,2644.4,3.78157616]
[1748534909860,4.117,2644.5,2644.3,13.78162461]
[1748534909861,4.9093,2644.5,2644.3,13.78162461]
[1748534910070,4.9093,2644.5,2644.4,3.78157616]
[1748534910235,4.9093,2644.5,2644.3,13.78162461]
[1748534910236,4.9093,2644.5,2644.3,13.78164086]
[1748534910921,4.9093,2644.5,2644.4,3.78157616]
[1748534911556,4.9093,2644.5,2644.3,13.78165849]
[1748534911729,4.117,2644.5,2644.4,3.78157616]
[1748534911930,1.14690164,2645.1,2644.3,1.79645073]
[1748534912258,1.14690164,2645.1,2644.7,3.78107656]
[1748534912259,0.7902,2645.1,2644.7,3.78107656]
[1748534912464,4.116,2645.0,2644.7,3.78107656]
[1748534913023,0.7902,2645.1,2644.7,3.78107656]
[1748534913263,0.7902,2645.1,2644.2,10.0]
[1748534913264,4.116,2645.0,2644.6,3.78122803]
[1748534913469,4.116,2645.0,2644.5,3.7813519]
[1748534913636,4.116,2645.0,2644.6,3.78126969]
[1748534913837,4.116,2645.0,2644.1,10.44643877]
[1748534913838,4.116,2645.0,2644.5,3.78131927]
[1748534914030,3.78088534,2644.9,2644.2,10.0]
[1748534914232,0.824,2644.8,2644.1,0.40103877]
[1748534914535,0.8004,2644.4,2644.1,0.02]
[1748534914742,4.116,2644.3,2644.1,0.02]
[1748534915284,7.89776171,2644.3,2644.1,0.02]
[1748534915584,0.86981617,2644.2,2644.1,0.02]
[1748534916059,4.116,2644.3,2644.1,0.02]
[1748534917662,0.7645,2644.2,2644.1,0.02]
[1748534917870,12.90289286,2644.2,2644.1,0.02]
[1748534918024,12.54650521,2644.1,2644.0,0.1475]
[1748534918222,12.90303589,2644.1,2644.0,0.1475]
[1748534918470,15.78311597,2644.1,2644.0,0.1475]
[1748534918627,12.00111076,2644.1,2644.0,0.1475]
[1748534918829,15.78311597,2644.1,2644.0,0.1475]
[1748534919053,15.42658529,2644.1,2644.0,0.1475]
[1748534919265,15.78298286,2644.1,2644.0,0.1475]
[1748534919500,15.78298286,2644.1,2643.1,0.68369173]
[1748534919501,8.0,2644.0,2643.1,0.68369173]
[1748534919633,3.7827959,2643.6,2643.1,0.68369173]
[1748534919978,3.7827959,2643.6,2643.1,1.06725554]
[1748534919979,4.116,2643.5,2643.1,1.06725554]
[1748534920329,4.116,2643.5,2643.1,0.68369173]
[1748534920330,4.55980673,2643.4,2643.1,0.68369173]
[1748534920559,0.7768,2643.4,2643.1,0.68369173]
[1748534920942,1.26608,2643.4,2643.1,0.68369173]
[1748534922169,4.93657845,2643.7,2643.3,3.7830136]
[1748534922170,0.7892,2643.7,2643.3,3.7830136]
[1748534922326,4.116,2643.6,2643.2,3.7832215]
[1748534922525,4.116,2643.6,2643.2,3.78320529]
[1748534922726,4.116,2643.6,2643.1,1.07016734]
[1748534922980,4.116,2643.6,2643.1,4.85358791]
[1748534923327,4.116,2643.6,2643.2,3.78324164]
[1748534923756,4.116,2643.6,2643.1,4.8535764]
[1748534923973,4.116,2643.6,2643.2,3.78318478]
[1748534924476,4.116,2643.6,2643.3,3.78314668]
[1748534924831,4.60652,2643.6,2643.1,1.07016734]
[1748534925065,4.60652,2643.6,2643.1,0.68369173]
[1748534925066,3.78329297,2643.2,2643.1,0.68369173]
[1748534925388,16.67479297,2643.2,2643.1,0.02]
[1748534925535,18.83598927,2643.2,2643.1,0.02]
[1748534926486,18.83598927,2643.2,2642.1,0.02]
[1748534926487,0.7755,2642.5,2642.1,0.02]
[1748534926687,4.116,2642.4,2642.1,0.02]
[1748534926975,7.90050469,2642.4,2642.1,0.02]
[1748534927198,4.116,2642.4,2642.1,0.02]
[1748534927398,0.86756893,2642.4,2642.1,0.02]
[1748534927549,4.117,2642.3,2642.1,0.02]
[1748534928382,7.90165506,2642.3,2642.1,0.02]
[1748534928703,3.78472485,2642.2,2642.1,0.02]
[1748534929000,0.8212,2642.2,2642.1,0.02]
[1748534929188,4.60592485,2642.2,2642.1,0.02]
[1748534929500,2.07195797,2642.2,2642.1,0.02]
[1748534930154,5.85668282,2642.2,2642.1,0.02]
[1748534931260,2.07195797,2642.2,2642.1,0.02]
[1748534931479,6.0912,2642.2,2642.1,0.02]
[1748534931851,0.8212,2642.2,2642.1,0.02]
[1748534932052,0.8212,2642.5,2642.2,3.7846531]
[1748534932351,4.117,2642.4,2642.2,3.78465884]
[1748534932589,4.117,2642.4,2642.3,3.78458161]
[1748534932749,4.117,2642.4,2642.3,4.54345744]
[1748534932945,0.8212,2642.8,2642.2,3.78472485]
[1748534933196,0.8212,2642.8,2642.2,3.78458672]
[1748534933197,4.117,2642.7,2642.2,3.78458672]
[1748534933355,4.117,2642.7,2642.3,3.78449701]
[1748534933549,4.117,2642.7,2642.4,3.78442549]
[1748534933795,4.117,2642.7,2642.1,0.02]
[1748534933796,8.8225,2642.6,2642.1,0.02]
[1748534934005,4.60722485,2642.2,2642.1,0.02]
[1748534934208,9.87822485,2642.2,2642.1,0.02]
[1748534934497,17.87822485,2642.2,2642.1,0.02]
[1748534935215,18.23248025,2642.2,2642.1,0.02]
[1748534936204,14.11548025,2642.2,2642.1,0.02]
[1748534936405,20.02348667,2642.2,2642.1,0.02]
[1748534936712,0.829,2641.5,2640.9,4.01945693]
[1748534936912,4.118,2641.4,2641.2,3.7861578]
[1748534937080,4.118,2641.4,2641.1,0.02]
[1748534937666,4.118,2641.4,2641.1,3.80629281]
[1748534937858,4.118,2641.4,2641.1,0.02]
[1748534938262,3.7860525,2641.3,2641.1,0.02]
[1748534938521,4.118,2641.4,2641.1,0.02]
[1748534938718,0.87330525,2641.3,2641.1,0.02]
[1748534939021,4.118,2641.4,2641.1,0.02]
[1748534939382,0.829,2641.5,2641.1,3.80624498]
[1748534939583,4.118,2641.4,2641.1,3.80624498]
[1748534939785,4.118,2641.3,2641.1,3.80624498]
[1748534940095,4.118,2641.3,2641.1,3.80623685]
[1748534940295,4.118,2641.3,2641.2,3.7861578]
[1748534940525,0.8319,2642.1,2641.3,3.78601446]
[1748534940709,4.117,2642.0,2641.4,3.78576149]
[1748534940909,4.117,2642.0,2641.5,3.78565492]
[1748534941133,3.78418228,2642.6,2641.3,3.78596676]
[1748534941134,5.69987095,2642.4,2641.3,5.440246]
[1748534941346,5.69987095,2642.4,2641.2,10.2329]
[1748534941347,3.78459749,2642.3,2641.5,3.7857278]
[1748534941556,3.78482112,2642.2,2641.5,3.78560451]
[1748534941867,0.8,2641.8,2641.6,3.78554199]
[1748534942015,4.117,2641.7,2641.6,3.78551262]
[1748534942214,0.8,2641.8,2641.7,3.78544119]
[1748534942749,4.37753062,2643.1,2641.7,3.78544119]
[1748534942750,0.783,2642.7,2641.7,4.77543065]
[1748534942964,1.20867152,2643.1,2642.0,32.016115]
[1748534943107,4.117,2642.9,2642.5,3.78422336]
[1748534943310,8.69948249,2643.3,2642.7,3.78400877]
[1748534943311,0.69948249,2643.3,2642.7,3.78400877]
[1748534943613,0.7664,2643.4,2642.6,0.2329]